[Event "FIDE World Rapid-ch Open 2018"]
[White "Belyakov, Bogdan"]
[Black "Frolyanov, Dmitry"]
[Site "St. Petersburg"]
[Round "11.52"]
[Annotator "ChessBase"]
[Result "1-0"]
[Date "2018.12.28"]
[WhiteElo "2459"]
[BlackElo "2517"]
[PlyCount "57"]
[TimeControl "900+10"]

1. e4 {[%emt 0:0:0]} c5 {[%emt 0:1:36]} 2. c3 {[%emt 0:0:0]} Nf6 {[%emt 0:0:0]} 3. e5 {[%emt 0:0:0]} Nd5 {[%emt 0:0:2]} 4. d4 {[%emt 0:0:0]} cxd4 {[%emt 0:0:2]} 5. cxd4 {[%emt 0:0:3]} d6 {[%emt 0:0:26]} 6. Bc4 {[%emt 0:0:0]} Nb6 {[%emt 0:0:20]} 7. Bb5+ {[%emt 0:0:2]} Bd7 {[%emt 0:0:15]} 8. e6 {[%emt 0:0:3]} fxe6 {[%emt 0:0:51]} 9. Bd3 {[%emt 0:0:2]} Bc6 {[%emt 0:0:0]} 10. Qg4 {[%emt 0:1:41]} Qd7 {[%emt 0:1:0]} 11. Ne2 {[%emt 0:0:12]} Na6 {[%emt 0:0:36]} 12. Qh5+ {[%emt 0:1:24]} Kd8 {[%emt 0:0:30]} 13. Bxa6 {[%emt 0:1:25]
} bxa6 {[%emt 0:0:3]} 14. 0-0 {[%emt 0:0:8]} g6 {[%emt 0:0:0]} 15. Qh4 {[%emt 0:0:3]} Bg7 {[%emt 0:0:31]} 16. Bh6 {[%emt 0:0:14]} Bxh6 {[%emt 0:1:55]} 17. Qxh6 {[%emt 0:0:2]} Nd5 {[%emt 0:0:32]} 18. Nbc3 {[%emt 0:0:15]
} Nxc3 {[%emt 0:1:1]} 19. bxc3 {[%emt 0:0:24]} Kc7 {[%emt 0:0:0]} 20. c4 {[%emt 0:0:3]} e5 {[%emt 0:0:54]} 21. dxe5 {[%emt 0:0:41]} dxe5 {[%emt 0:0:30]} 22. Qe3 {[%emt 0:0:18]} Qf5 {[%emt 0:0:46]} 23. Nc3 {[%emt 0:0:32]
} e6 {[%emt 0:1:9]} 24. Rfd1 {[%emt 0:1:10]} Rhd8 {[%emt 0:0:0]} 25. Qc5 {[%emt 0:1:37]} Qg5 {[%emt 0:0:41]} 26. Ne4 {[%emt 0:1:3]} Rxd1+ {[%emt 0:0:2]} 27. Rxd1 {[%emt 0:0:2]} Rd8 {[%emt 0:0:0]} 28. Qxa7+ {[%emt 0:2:0]} Bb7 {[%emt 0:0:1]} 29. Rb1 {[%emt 0:0:9]} 1-0

[Event "FIDE World Rapid-ch Open 2018"]
[White "Roiz, Michael"]
[Black "Sanal, Vahap"]
[Site "St. Petersburg"]
[Round "11.53"]
[Annotator "ChessBase"]
[Result "0-1"]
[Date "2018.12.28"]
[WhiteElo "2605"]
[BlackElo "2490"]
[PlyCount "136"]
[TimeControl "900+10"]

1. d4 {[%emt 0:0:20]} Nf6 {[%emt 0:3:8]} 2. c4 {[%emt 0:0:6]} e6 {[%emt 0:0:0]} 3. Nf3 {[%emt 0:0:10]} b6 {[%emt 0:0:2]} 4. g3 {[%emt 0:0:16]} Bb7 {[%emt 0:0:1]} 5. Bg2 {[%emt 0:0:1]} Be7 {[%emt 0:0:2]} 6. 0-0 {[%emt 0:0:0]} 0-0 {[%emt 0:0:3]} 7. Nc3 {[%emt 0:0:24]} Ne4 {[%emt 0:0:6]} 8. Bd2 {[%emt 0:0:2]} Nxd2 {[%emt 0:0:4]} 9. Qxd2 {[%emt 0:0:5]} d6 {[%emt 0:0:6]
} 10. e4 {[%emt 0:0:45]} Nd7 {[%emt 0:0:5]} 11. Rad1 {[%emt 0:0:0]} c6 {[%emt 0:0:15]} 12. e5 {[%emt 0:1:57]} d5 {[%emt 0:0:43]} 13. cxd5 {[%emt 0:0:59]} cxd5 {[%emt 0:0:3]} 14. h4 {[%emt 0:0:7]} Ba6 {[%emt 0:0:28]
} 15. Rfe1 {[%emt 0:0:2]} b5 {[%emt 0:0:20]} 16. Bf1 {[%emt 0:0:0]} Qb6 {[%emt 0:0:39]} 17. Ne2 {[%emt 0:0:20]} f5 {[%emt 0:1:31]} 18. Nf4 {[%emt 0:0:28]} Rfc8 {[%emt 0:1:25]} 19. Rc1 {[%emt 0:0:7]} Nf8 {[%emt 0:0:14]
} 20. Rxc8 {[%emt 0:0:57]} Bxc8 {[%emt 0:0:36]} 21. Rc1 {[%emt 0:0:11]
} Bd7 {[%emt 0:0:9]} 22. Rc2 {[%emt 0:1:15]} a5 {[%emt 0:0:0]} 23. Qc1 {[%emt 0:0:27]} h6 {[%emt 0:0:58]} 24. Nd3 {[%emt 0:0:29]} Be8 {[%emt 0:0:23]} 25. Be2 {[%emt 0:0:27]} Bd8 {[%emt 0:1:7]} 26. Kg2 {[%emt 0:2:14]
} Qb7 {[%emt 0:0:6]} 27. Nc5 {[%emt 0:0:31]} Qe7 {[%emt 0:0:0]} 28. Qf1 {[%emt 0:0:45]} Rb8 {[%emt 0:0:12]} 29. Rc1 {[%emt 0:0:48]} g5 {[%emt 0:0:19]} 30. hxg5 {[%emt 0:0:3]} hxg5 {[%emt 0:0:2]} 31. Qh1 {[%emt 0:0:9]
} Qg7 {[%emt 0:0:31]} 32. Ne1 {[%emt 0:0:23]} Qg6 {[%emt 0:0:0]} 33. Ned3 {[%emt 0:1:15]} Ra8 {[%emt 0:0:12]} 34. Nb7 {[%emt 0:0:22]} Bb6 {[%emt 0:0:14]} 35. Nd6 {[%emt 0:0:1]} Bxd4 {[%emt 0:0:39]} 36. Rc7 {[%emt 0:0:11]
} Ra7 {[%emt 0:0:52]} 37. Rc8 {[%emt 0:1:4]} Rh7 {[%emt 0:0:0]} 38. Nxe8 {[%emt 0:0:24]} Rxh1 {[%emt 0:0:6]} 39. Kxh1 {[%emt 0:0:6]} Qh6+ {[%emt 0:0:49]} 40. Kg2 {[%emt 0:0:11]} g4 {[%emt 0:0:52]} 41. Nf6+ {[%emt 0:0:16]
} Kg7 {[%emt 0:0:9]} 42. Rc7+ {[%emt 0:0:29]} Kh8 {[%emt 0:0:0]} 43. Rf7 {[%emt 0:0:31]} Qh3+ {[%emt 0:0:3]} 44. Kg1 {[%emt 0:0:0]} Qxg3+ {[%emt 0:0:6]} 45. Kf1 {[%emt 0:0:5]} Qh2 {[%emt 0:0:43]} 46. Ke1 {[%emt 0:0:4]
} Bxe5 {[%emt 0:0:45]} 47. Rxf8+ {[%emt 0:0:28]} Kg7 {[%emt 0:0:0]} 48. Nd7 {[%emt 0:0:3]} Bd4 {[%emt 0:0:11]} 49. Re8 {[%emt 0:0:7]} Kf7 {[%emt 0:0:12]} 50. Rc8 {[%emt 0:0:9]} Qg1+ {[%emt 0:0:26]} 51. Bf1 {[%emt 0:0:9]
} Qh2 {[%emt 0:0:1]} 52. N7c5 {[%emt 0:0:20]} g3 {[%emt 0:0:0]} 53. fxg3 {[%emt 0:0:1]} Bxb2 {[%emt 0:0:11]} 54. Rc7+ {[%emt 0:0:11]} Kf6 {[%emt 0:0:2]} 55. Nd7+ {[%emt 0:0:7]} Kg5 {[%emt 0:0:1]} 56. Kd1 {[%emt 0:0:10]
} Qg1 {[%emt 0:0:12]} 57. Kc2 {[%emt 0:0:6]} Qxf1 {[%emt 0:0:0]} 58. Nxb2 {[%emt 0:0:6]} Qg2+ {[%emt 0:0:2]} 59. Kb1 {[%emt 0:0:4]} Qxg3 {[%emt 0:0:3]} 60. Rc1 {[%emt 0:0:3]} e5 {[%emt 0:0:13]} 61. Nc5 {[%emt 0:0:4]
} f4 {[%emt 0:0:4]} 62. Rd1 {[%emt 0:0:19]} Qg2 {[%emt 0:0:0]} 63. Nbd3 {[%emt 0:0:7]} Kf5 {[%emt 0:0:6]} 64. Nb3 {[%emt 0:0:22]} a4 {[%emt 0:0:4]} 65. Nbc1 {[%emt 0:0:3]} a3 {[%emt 0:0:7]} 66. Nb3 {[%emt 0:0:36]
} e4 {[%emt 0:0:1]} 67. Rd2 {[%emt 0:0:4]} Qg1+ {[%emt 0:0:0]} 68. Ndc1 {[%emt 0:0:1]} Ke5 {[%emt 0:0:2]} 0-1

[Event "FIDE World Rapid-ch Open 2018"]
[White "Kevlishvili, Robby"]
[Black "Novikov, Stanislav"]
[Site "St. Petersburg"]
[Round "11.54"]
[Annotator "ChessBase"]
[Result "1-0"]
[Date "2018.12.28"]
[WhiteElo "2451"]
[BlackElo "2540"]
[PlyCount "103"]
[TimeControl "900+10"]

1. e4 {[%emt 0:0:0]} c5 {[%emt 0:0:0]} 2. Nf3 {[%emt 0:0:0]} e6 {[%emt 0:0:0]} 3. d4 {[%emt 0:0:0]} cxd4 {[%emt 0:0:0]} 4. Nxd4 {[%emt 0:0:3]} a6 {[%emt 0:0:0]} 5. c4 {[%emt 0:0:8]} Nf6 {[%emt 0:0:2]} 6. Nc3 {[%emt 0:0:5]
} Bb4 {[%emt 0:0:15]} 7. Qd3 {[%emt 0:0:11]} Qc7 {[%emt 0:0:0]} 8. Nc2 {[%emt 0:0:4]} Bxc3+ {[%emt 0:1:19]} 9. Qxc3 {[%emt 0:0:5]} e5 {[%emt 0:0:42]} 10. f3 {[%emt 0:0:8]} d6 {[%emt 0:0:7]} 11. Be2 {[%emt 0:0:0]} Be6 {[%emt 0:0:3]} 12. Be3 {[%emt 0:0:22]} Nbd7 {[%emt 0:0:3]} 13. Rc1 {[%emt 0:1:23]} Rc8 {[%emt 0:0:13]} 14. Nb4 {[%emt 0:0:33]} Qa5 {[%emt 0:2:41]
} 15. 0-0 {[%emt 0:3:38]} b5 {[%emt 0:1:34]} 16. Qd2 {[%emt 0:0:0]} 0-0 {[%emt 0:3:12]} 17. cxb5 {[%emt 0:0:2]} axb5 {[%emt 0:0:21]} 18. Qxd6 {[%emt 0:0:15]} Kh8 {[%emt 0:1:9]} 19. a3 {[%emt 0:0:15]} Qa4 {[%emt 0:0:46]
} 20. Rxc8 {[%emt 0:0:53]} Rxc8 {[%emt 0:0:2]} 21. Rc1 {[%emt 0:0:9]
} Rxc1+ {[%emt 0:1:0]} 22. Bxc1 {[%emt 0:0:1]} Bc4 {[%emt 0:0:0]} 23. Qd1 {[%emt 0:1:40]} Qa7+ {[%emt 0:0:13]} 24. Kf1 {[%emt 0:0:2]} h5 {[%emt 0:0:17]} 25. Bxc4 {[%emt 0:0:11]} bxc4 {[%emt 0:0:1]} 26. Qe2 {[%emt 0:0:2]
} Qc7 {[%emt 0:1:14]} 27. Bd2 {[%emt 0:0:22]} h4 {[%emt 0:0:0]} 28. Bc3 {[%emt 0:2:10]} h3 {[%emt 0:0:4]} 29. g3 {[%emt 0:0:3]} Nb6 {[%emt 0:0:11]
} 30. Qd1 {[%emt 0:2:58]} Qc5 {[%emt 0:0:18]} 31. Ke2 {[%emt 0:0:0]} Kh7 {[%emt 0:0:14]} 32. Qf1 {[%emt 0:0:5]} Qc8 {[%emt 0:0:19]} 33. Bxe5 {[%emt 0:0:10]} Qe6 {[%emt 0:0:49]} 34. Bd4 {[%emt 0:0:23]} Na4 {[%emt 0:0:21]
} 35. Qb1 {[%emt 0:0:47]} Kg8 {[%emt 0:0:19]} 36. Qc2 {[%emt 0:0:0]} Nb6 {[%emt 0:0:16]} 37. Be3 {[%emt 0:0:21]} Nbd7 {[%emt 0:0:8]} 38. Bd4 {[%emt 0:0:38]} Nh5 {[%emt 0:0:10]} 39. Kf2 {[%emt 0:0:29]} Nhf6 {[%emt 0:0:14]
} 40. Qc3 {[%emt 0:0:12]} g5 41. e5 {[%emt 0:0:31]} Nh5 {[%emt 0:0:19]
} 42. Qe3 {[%emt 0:0:5]} Qg6 {[%emt 0:0:7]} 43. Qe4 {[%emt 0:0:0]} Qe6 {[%emt 0:0:5]} 44. Qg4 Qg6 {[%emt 0:0:8]} 45. Qxd7 {[%emt 0:0:0]} Qb1 {[%emt 0:0:2]} 46. Qc8+ {[%emt 0:0:12]} Kh7 {[%emt 0:0:3]} 47. Qxc4 {[%emt 0:0:7]} Qh1 {[%emt 0:0:4]} 48. Qxf7+ {[%emt 0:0:7]} Ng7 {[%emt 0:0:15]
} 49. e6 {[%emt 0:0:31]} Qxh2+ {[%emt 0:0:1]} 50. Ke1 {[%emt 0:0:3]
} Qxg3+ {[%emt 0:0:7]} 51. Kd2 {[%emt 0:0:10]} Qg2+ {[%emt 0:0:0]} 52. Kc3 {[%emt 0:0:3]} 1-0

[Event "FIDE World Rapid-ch Open 2018"]
[White "Jumabayev, Rinat"]
[Black "Lomasov, Semyon"]
[Site "St. Petersburg"]
[Round "11.55"]
[Annotator "ChessBase"]
[Result "1/2-1/2"]
[Date "2018.12.28"]
[WhiteElo "2602"]
[BlackElo "2553"]
[PlyCount "113"]
[TimeControl "900+10"]

1. Nf3 {[%emt 0:0:0]} Nf6 {[%emt 0:0:0]} 2. g3 {[%emt 0:0:0]} c5 {[%emt 0:0:0]
} 3. Bg2 {[%emt 0:0:0]} d5 {[%emt 0:0:6]} 4. 0-0 {[%emt 0:0:0]} Nc6 {[%emt 0:0:16]} 5. d4 {[%emt 0:0:1]} e6 {[%emt 0:1:10]} 6. c4 {[%emt 0:0:2]
} dxc4 {[%emt 0:0:6]} 7. Na3 {[%emt 0:0:52]} cxd4 {[%emt 0:0:0]} 8. Nxc4 {[%emt 0:0:1]} Be7 {[%emt 0:0:5]} 9. Qd3 {[%emt 0:1:31]} 0-0 {[%emt 0:0:48]} 10. Rd1 {[%emt 0:0:1]} Bd7 {[%emt 0:2:34]} 11. Nxd4 {[%emt 0:0:15]
} Nxd4 {[%emt 0:0:1]} 12. Qxd4 {[%emt 0:0:1]} Bb5 {[%emt 0:0:0]} 13. b3 {[%emt 0:5:33]} Bxc4 {[%emt 0:0:11]} 14. bxc4 {[%emt 0:0:2]} Qa5 {[%emt 0:5:48]} 15. Bd2 {[%emt 0:6:1]} Qa6 {[%emt 0:0:7]} 16. Qb2 {[%emt 0:0:1]
} Qxc4 {[%emt 0:2:27]} 17. Qxb7 {[%emt 0:0:1]} Rfe8 {[%emt 0:0:0]} 18. Be3 {[%emt 0:0:2]} Nd5 {[%emt 0:0:37]} 19. Bxd5 {[%emt 0:3:25]} exd5 {[%emt 0:0:1]} 20. Qxd5 {[%emt 0:0:17]} Qxe2 {[%emt 0:0:5]} 21. Re1 {[%emt 0:0:7]
} Qa6 {[%emt 0:0:26]} 22. Rad1 {[%emt 0:0:8]} Rad8 {[%emt 0:0:0]} 23. Qb3 {[%emt 0:0:2]} Rb8 {[%emt 0:0:52]} 24. Qd5 {[%emt 0:0:1]} Rbd8 {[%emt 0:0:17]} 25. Qb3 {[%emt 0:0:1]} Rb8 {[%emt 0:0:2]} 26. Qc2 {[%emt 0:0:9]
} Bb4 {[%emt 0:0:8]} 27. Re2 {[%emt 0:0:9]} Bc5 {[%emt 0:0:0]} 28. Qd3 {[%emt 0:0:22]} Qxd3 {[%emt 0:0:14]} 29. Rxd3 {[%emt 0:0:1]} g6 {[%emt 0:0:58]} 30. Kg2 {[%emt 0:0:1]} Re7 {[%emt 0:0:22]} 31. Kf3 {[%emt 0:0:7]
} Rbe8 {[%emt 0:0:4]} 32. Rc3 {[%emt 0:0:29]} Bb6 {[%emt 0:0:0]} 33. g4 {[%emt 0:0:8]} f6 {[%emt 0:0:21]} 34. Rec2 {[%emt 0:0:9]} Bxe3 {[%emt 0:0:3]} 35. Rxe3 {[%emt 0:0:1]} Rxe3+ {[%emt 0:0:7]} 36. fxe3 {[%emt 0:0:1]
} Kf7 {[%emt 0:0:11]} 37. h4 {[%emt 0:0:4]} h5 {[%emt 0:0:8]
} 38. gxh5 {[%emt 0:0:5]} gxh5 {[%emt 0:0:1]} 39. Kf4 {[%emt 0:0:5]} Re7 {[%emt 0:0:13]} 40. e4 {[%emt 0:0:16]} Kg6 {[%emt 0:0:27]} 41. Rc6 {[%emt 0:0:0]} Re5 {[%emt 0:0:7]} 42. Ra6 {[%emt 0:0:9]} Re7 {[%emt 0:0:3]} 43. a4 {[%emt 0:0:4]} Kg7 {[%emt 0:0:4]} 44. Ra5 {[%emt 0:0:6]} Kg6 {[%emt 0:0:0]} 45. Rc5 {[%emt 0:0:10]} Re6 {[%emt 0:0:14]} 46. a5 {[%emt 0:0:41]} Rd6 {[%emt 0:0:8]} 47. Rd5 {[%emt 0:0:24]} Rc6 {[%emt 0:0:1]} 48. Rb5 {[%emt 0:0:4]
} Rd6 {[%emt 0:0:19]} 49. Ke3 {[%emt 0:0:5]} Rd1 {[%emt 0:0:0]} 50. Rb7 {[%emt 0:0:7]} Rh1 {[%emt 0:0:10]} 51. Rxa7 {[%emt 0:0:1]} Rxh4 {[%emt 0:0:2]} 52. a6 {[%emt 0:0:7]} Rh3+ {[%emt 0:0:6]} 53. Kf2 {[%emt 0:0:30]
} Ra3 {[%emt 0:0:7]} 54. Ra8 {[%emt 0:0:4]} Kg7 {[%emt 0:0:0]} 55. Kg2 {[%emt 0:0:3]} h4 {[%emt 0:0:4]} 56. Kh2 {[%emt 0:0:8]} Ra4 {[%emt 0:0:15]} 57. Ra7+ {[%emt 0:0:23]} 1/2-1/2

[Event "FIDE World Rapid-ch Open 2018"]
[White "Bindrich, Falko"]
[Black "Steinberg, Nitzan"]
[Site "St. Petersburg"]
[Round "11.56"]
[Annotator "ChessBase"]
[Result "0-1"]
[Date "2018.12.28"]
[WhiteElo "2606"]
[BlackElo "2532"]
[PlyCount "102"]
[TimeControl "900+10"]

1. d4 {[%emt 0:0:0]} d5 {[%emt 0:0:0]} 2. c4 {[%emt 0:0:0]} c6 {[%emt 0:0:0]} 3. e3 {[%emt 0:0:0]} Nf6 {[%emt 0:0:0]} 4. Nf3 {[%emt 0:0:0]} e6 {[%emt 0:0:0]} 5. b3 {[%emt 0:0:0]} Nbd7 {[%emt 0:0:1]} 6. Bb2 {[%emt 0:0:0]} Bb4+ {[%emt 0:0:2]} 7. Nbd2 {[%emt 0:0:12]} Ne4 {[%emt 0:0:4]} 8. Bd3 {[%emt 0:0:30]} f5 {[%emt 0:1:56]} 9. 0-0 {[%emt 0:0:6]} 0-0 {[%emt 0:0:0]} 10. a3 {[%emt 0:0:6]} Bd6 {[%emt 0:0:2]} 11. Ne5 {[%emt 0:0:14]} Qf6 {[%emt 0:1:50]} 12. f4 {[%emt 0:0:10]} Qe7 {[%emt 0:1:14]} 13. c5 {[%emt 0:0:8]
} Bxe5 {[%emt 0:0:50]} 14. fxe5 {[%emt 0:0:12]} b6 {[%emt 0:0:0]} 15. b4 {[%emt 0:0:10]} a5 {[%emt 0:0:17]} 16. Qe2 {[%emt 0:1:2]} Nxd2 {[%emt 0:0:32]} 17. Qxd2 {[%emt 0:0:2]} Ba6 {[%emt 0:0:3]} 18. Rfc1 {[%emt 0:2:2]
} Bxd3 {[%emt 0:0:45]} 19. Qxd3 {[%emt 0:0:2]} Rfb8 {[%emt 0:0:0]} 20. Qd2 {[%emt 0:4:18]} Qd8 {[%emt 0:2:1]} 21. Bc3 {[%emt 0:2:20]} axb4 {[%emt 0:1:31]} 22. axb4 {[%emt 0:0:1]} Qc8 {[%emt 0:0:15]} 23. Qe1 {[%emt 0:0:28]
} Rxa1 {[%emt 0:1:37]} 24. Rxa1 {[%emt 0:0:2]} Ra8 {[%emt 0:0:0]} 25. Qb1 {[%emt 0:2:22]} b5 {[%emt 0:1:11]} 26. Ra2 {[%emt 0:0:30]} Ra6 {[%emt 0:0:3]} 27. Qa1 {[%emt 0:0:2]} Nb8 {[%emt 0:0:2]} 28. Ra5 {[%emt 0:0:10]
} Qb7 {[%emt 0:0:13]} 29. Be1 {[%emt 0:0:14]} Qa8 {[%emt 0:0:0]} 30. Bh4 {[%emt 0:0:22]} Rxa5 {[%emt 0:0:34]} 31. bxa5 {[%emt 0:0:2]} Na6 {[%emt 0:0:32]} 32. Qd1 {[%emt 0:0:22]} b4 {[%emt 0:0:26]} 33. e4 {[%emt 0:0:51]
} dxe4 {[%emt 0:0:43]} 34. Qb3 {[%emt 0:0:8]} Kf7 {[%emt 0:0:0]} 35. d5 {[%emt 0:0:19]} cxd5 {[%emt 0:0:39]} 36. Qa4 {[%emt 0:0:1]} Qb7 {[%emt 0:0:57]} 37. c6 {[%emt 0:0:17]} Qa7+ {[%emt 0:0:1]} 38. Kf1 {[%emt 0:0:1]
} Qc5 {[%emt 0:0:35]} 39. c7 {[%emt 0:0:59]} Qxc7 {[%emt 0:0:0]} 40. Be1 {[%emt 0:0:1]} f4 {[%emt 0:0:53]} 41. Qd1 {[%emt 0:0:24]} g6 {[%emt 0:0:12]
} 42. Qg4 {[%emt 0:0:7]} Qc4+ {[%emt 0:0:2]} 43. Kg1 {[%emt 0:0:1]
} Qd4+ {[%emt 0:0:17]} 44. Kf1 {[%emt 0:0:2]} Qd3+ {[%emt 0:0:0]} 45. Kg1 {[%emt 0:0:1]} Qe3+ {[%emt 0:0:6]} 46. Kf1 {[%emt 0:0:2]} f3 {[%emt 0:0:10]} 47. gxf3 {[%emt 0:0:8]} exf3 {[%emt 0:0:17]} 48. Qg3 {[%emt 0:0:16]
} b3 {[%emt 0:0:11]} 49. Bf2 {[%emt 0:0:2]} Qd3+ {[%emt 0:0:0]} 50. Kg1 {[%emt 0:0:1]} b2 {[%emt 0:0:5]} 51. Qf4+ {[%emt 0:0:2]} Qf5 {[%emt 0:0:7]} 0-1

[Event "FIDE World Rapid-ch Open 2018"]
[White "Indjic, Aleksandar"]
[Black "Sharma, Dinesh K."]
[Site "St. Petersburg"]
[Round "11.57"]
[Annotator "ChessBase"]
[Result "1-0"]
[Date "2018.12.28"]
[WhiteElo "2620"]
[BlackElo "2295"]
[PlyCount "95"]
[TimeControl "900+10"]

1. d4 {[%emt 0:5:25]} d5 {[%emt 0:0:0]} 2. Nf3 {[%emt 0:0:8]} Nf6 {[%emt 0:0:0]
} 3. c4 {[%emt 0:0:4]} c6 {[%emt 0:0:0]} 4. Nc3 {[%emt 0:0:0]} dxc4 {[%emt 0:0:1]} 5. a4 {[%emt 0:0:0]} Bf5 {[%emt 0:0:3]} 6. e3 {[%emt 0:0:1]
} e6 {[%emt 0:0:7]} 7. Bxc4 {[%emt 0:0:2]} Bb4 {[%emt 0:0:0]} 8. 0-0 {[%emt 0:0:2]} Nbd7 {[%emt 0:0:9]} 9. h3 {[%emt 0:0:1]} Bg6 {[%emt 0:0:26]
} 10. Bd2 {[%emt 0:0:51]} 0-0 {[%emt 0:0:5]} 11. Nh4 {[%emt 0:0:0]} Bh5 {[%emt 0:0:16]} 12. Be2 {[%emt 0:0:57]} Bxe2 {[%emt 0:0:32]} 13. Qxe2 {[%emt 0:0:2]} c5 {[%emt 0:1:11]} 14. Nf3 {[%emt 0:0:6]} cxd4 {[%emt 0:0:36]
} 15. Nxd4 {[%emt 0:0:2]} a6 {[%emt 0:0:25]} 16. Rfd1 {[%emt 0:0:5]
} Rc8 {[%emt 0:0:7]} 17. Be1 {[%emt 0:0:1]} Qc7 {[%emt 0:0:0]} 18. Ncb5 {[%emt 0:3:19]} Qc5 {[%emt 0:0:11]} 19. Nb3 {[%emt 0:2:46]} Qe7 {[%emt 0:0:7]} 20. N5d4 {[%emt 0:0:8]} Bxe1 {[%emt 0:0:33]} 21. Qxe1 {[%emt 0:0:2]
} Ne5 {[%emt 0:0:58]} 22. Rac1 {[%emt 0:1:37]} Rxc1 {[%emt 0:0:0]} 23. Nxc1 {[%emt 0:0:1]} Rc8 {[%emt 0:0:17]} 24. Nce2 {[%emt 0:0:1]
} g6 {[%emt 0:0:33]} 25. Rc1 {[%emt 0:1:28]} Rxc1 {[%emt 0:1:27]} 26. Qxc1 {[%emt 0:0:1]
} Qd7 {[%emt 0:0:1]} 27. b3 {[%emt 0:0:8]} Nd5 {[%emt 0:0:0]} 28. Qc5 {[%emt 0:0:12]} Nd3 {[%emt 0:1:20]} 29. Qc4 {[%emt 0:0:3]} Ne5 {[%emt 0:0:15]} 30. Qc2 {[%emt 0:0:41]} Nb4 {[%emt 0:0:18]} 31. Qc3 {[%emt 0:0:13]
} Nec6 {[%emt 0:0:22]} 32. Qc4 {[%emt 0:0:35]} e5 {[%emt 0:0:0]} 33. Nxc6 {[%emt 0:0:1]} Qd1+ {[%emt 0:0:15]} 34. Kh2 {[%emt 0:0:1]} Nxc6 {[%emt 0:0:2]} 35. Ng3 {[%emt 0:0:9]} Kg7 {[%emt 0:1:29]} 36. Ne4 {[%emt 0:0:4]
} Qd7 {[%emt 0:1:6]} 37. b4 {[%emt 0:0:20]} Qe7 {[%emt 0:0:0]} 38. b5 {[%emt 0:0:6]} axb5 {[%emt 0:0:16]} 39. axb5 {[%emt 0:0:1]} Nb8 {[%emt 0:1:22]} 40. Qc8 {[%emt 0:0:33]} Qb4 {[%emt 0:0:33]} 41. Qxb7 {[%emt 0:0:6]
} h6 {[%emt 0:0:30]} 42. b6 {[%emt 0:0:16]} Qf8 {[%emt 0:0:10]
} 43. Nc5 {[%emt 0:0:11]} Qe8 {[%emt 0:0:8]} 44. Qd5 {[%emt 0:0:19]} Qe7 {[%emt 0:0:8]
} 45. b7 {[%emt 0:0:3]} Qc7 {[%emt 0:0:3]} 46. Ne4 {[%emt 0:0:0]} Nc6 {[%emt 0:0:6]} 47. Nd6 {[%emt 0:0:2]} Nd8 {[%emt 0:0:16]} 48. Ne8+ {[%emt 0:0:2]} 1-0